fUSD/lending_fUSD_20250219
["ID","MTS","AMOUNT","RATE_DAILY","PERIOD"]
[353689339,1739991061294,-562.14,0.00011284,2]
[353689340,1739991061304,-914.87209752,0.00011284,2]
[353689341,1739991061314,-1255.93,0.00011284,2]
[353689342,1739991061324,-735.72,0.00011284,2]
[353689343,1739991061334,-1023.77,0.00011284,2]
[353689344,1739991061344,-500.0,0.00011284,2]
[353689345,1739991061354,-741.16,0.00011284,2]
[353689346,1739991061365,-500.0,0.00011284,2]
[353689347,1739991061379,-500.0,0.00011284,2]
[353689348,1739991061392,-500.0,0.00011284,2]
[353689349,1739991061402,-1492.46,0.00011284,2]
[353689350,1739991061413,-1211.99,0.00011284,2]
[353689351,1739991061423,-908.55,0.00011284,2]
[353689352,1739991061434,-1115.3,0.00011284,2]
[353689353,1739991061448,-622.28,0.00011284,2]
[353689354,1739991061458,-725.41,0.00011284,2]
[353689355,1739991061467,-1312.13,0.00011284,2]
[353689356,1739991061478,-500.0,0.00011284,2]
[353689357,1739991061491,-500.0,0.00011284,2]
[353689358,1739991061508,-1135.89,0.00011284,2]
[353689359,1739991061522,-500.0,0.00011284,2]
[353689360,1739991061532,-500.0,0.00011284,2]
[353689361,1739991061542,-626.24,0.00011284,2]
[353689362,1739991061552,-873.22,0.00011284,2]
[353689363,1739991061563,-828.64,0.00011284,2]
[353689364,1739991061573,-1067.13,0.00011284,2]
[353689365,1739991061584,-760.82,0.00011284,2]
[353689366,1739991061594,-500.0,0.00011284,2]
[353689367,1739991061604,-959.81,0.00011284,2]
[353689368,1739991061614,-160.52147512,0.00011284,2]
[353689369,1739991061624,-1130.2,0.00011284,2]
[353689370,1739991061634,-500.0,0.00011284,2]
[353689371,1739991061644,-580.80006541,0.00011284,2]
[353689372,1739991061653,-621.03,0.00011284,2]
[353689373,1739991061663,-837.8,0.00011284,2]
[353689374,1739991061673,-500.0,0.00011284,2]
[353689375,1739991061683,-544.69020935,0.00011284,2]
[353689376,1739991061692,-687.97,0.00011284,2]
[353689377,1739991061702,-500.0,0.00011284,2]
[353689378,1739991061711,-524.85,0.00011284,2]
[353689379,1739991061721,-763.25,0.00011284,2]
[353689380,1739991061730,-1453.26,0.00011284,2]
[353689381,1739991061739,-2178.41,0.00011284,2]
[353689382,1739991061749,-500.0,0.00011284,2]
[353689383,1739991061758,-2978.68,0.00011284,2]
[353689384,1739991061768,-867.64,0.00011284,2]
[353689385,1739991061777,-500.0,0.00011284,2]
[353689386,1739991061787,-500.0,0.00011284,2]
[353689387,1739991061796,-500.0,0.00011284,2]
[353689388,1739991061806,-500.0,0.00011284,2]
[353689389,1739991061815,-909.17,0.00011284,2]
[353689390,1739991061827,-659.34,0.00011284,2]
[353689391,1739991061836,-659.34,0.00011284,2]
[353689392,1739991061846,-659.34,0.00011284,2]
[353689393,1739991061856,-659.34,0.00011284,2]
[353689394,1739991061865,-500.0,0.00011284,2]
[353689395,1739991061875,-500.0,0.00011284,2]
[353689396,1739991061885,-944.41,0.00011284,2]
[353689397,1739991061895,-1667.3,0.00011284,2]
[353689398,1739991061905,-1335.65,0.00011284,2]
[353689399,1739991061915,-1536.77,0.00011284,2]
[353689400,1739991061925,-500.0,0.00011284,2]
[353689401,1739991061935,-2300.26,0.00011284,2]
[353689402,1739991061945,-500.0,0.00011284,2]
[353689403,1739991061954,-3967.01,0.00011284,2]
[353689404,1739991061963,-1054.96,0.00011284,2]
[353689405,1739991061973,-236.92198617,0.00011284,2]
[353689406,1739991061983,-2151.49,0.00011284,2]
[353689407,1739991061992,-500.0,0.00011284,2]
[353689408,1739991062001,-1026.98,0.00011284,2]
[353689409,1739991062011,-1717.95,0.00011284,2]
[353689410,1739991062021,-327.38650663,0.00011284,2]
[353689411,1739991062031,-500.0,0.00011284,2]
[353689412,1739991062041,-723.0,0.00011284,2]
[353689413,1739991062051,-858.82,0.00011284,2]
[353689414,1739991062060,-736.71,0.00011284,2]
[353689415,1739991062069,-500.0,0.00011284,2]
[353689416,1739991062080,-731.07,0.00011284,2]
[353689417,1739991062090,-808.06,0.00011284,2]
[353689418,1739991062100,-500.0,0.00011284,2]
[353689419,1739991062110,-500.0,0.00011284,2]
[353689420,1739991062121,-1003.52,0.00011284,2]
[353689421,1739991062130,-500.0,0.00011284,2]
[353689422,1739991062141,-1216.45,0.00011284,2]
[353689423,1739991062150,-897.65,0.00011284,2]
[353689424,1739991062159,-969.77,0.00011284,2]
[353689425,1739991062169,-1228.25,0.00011284,2]
[353689426,1739991062179,-2264.91,0.00011284,2]
[353689427,1739991062189,-597.7,0.00011284,2]
[353689428,1739991062199,-500.0,0.00011284,2]
[353689429,1739991062209,-1031.26,0.00011284,2]
[353689430,1739991062220,-500.0,0.00011284,2]
[353689431,1739991062230,-813.49,0.00011284,2]
[353689432,1739991062241,-500.0,0.00011284,2]
[353689433,1739991062250,-295.63,0.00011284,2]
[353689434,1739991062260,-500.0,0.00011284,2]
[353689435,1739991062269,-943.59,0.00011284,2]
[353689436,1739991062279,-807.9,0.00011284,2]
[353689437,1739991062288,-952.43,0.00011284,2]
[353689438,1739991062298,-1249.19,0.00011284,2]
[353689439,1739991062308,-1931.39,0.00011284,2]
[353689440,1739991062317,-699.69,0.00011284,2]
[353689441,1739991062326,-736.37,0.00011284,2]
[353689442,1739991062335,-500.0,0.00011284,2]
[353689443,1739991062344,-2136.43,0.00011284,2]
[353689444,1739991062354,-1349.59,0.00011284,2]
[353689445,1739991062363,-500.0,0.00011284,2]
[353689446,1739991062373,-1308.13,0.00011284,2]
[353689447,1739991062383,-763.21,0.00011284,2]
[353689448,1739991062557,-500.0,0.00011284,2]
[353689449,1739991062578,-500.0,0.00011284,2]
[353689450,1739991062588,-676.6,0.00011284,2]
[353689451,1739991062598,-1669.19,0.00011284,2]
[353689452,1739991062607,-500.0,0.00011284,2]
[353689453,1739991062617,-2496.14,0.00011284,2]
[353689454,1739991062627,-838.79,0.00011284,2]
[353689455,1739991062636,-500.0,0.00011284,2]
[353689456,1739991062646,-844.7,0.00011284,2]
[353689457,1739991062655,-500.0,0.00011284,2]
[353689458,1739991062665,-1038.95,0.00011284,2]
[353689459,1739991062674,-500.0,0.00011284,2]
[353689460,1739991062683,-643.34,0.00011284,2]
[353689461,1739991062693,-862.23,0.00011284,2]
[353689462,1739991062702,-1170.77,0.00011284,2]
[353689463,1739991062712,-1682.85,0.00011284,2]
[353689464,1739991062722,-972.98,0.00011284,2]
[353689465,1739991062731,-1036.38,0.00011284,2]
[353689466,1739991062740,-500.0,0.00011284,2]
[353689467,1739991062750,-665.65,0.00011284,2]
[353689468,1739991062759,-500.0,0.00011284,2]
[353689469,1739991062769,-816.32,0.00011284,2]
[353689470,1739991062779,-500.0,0.00011284,2]
[353689471,1739991062789,-1472.21,0.00011284,2]
[353689472,1739991062801,-1143.91,0.00011284,2]
[353689473,1739991062810,-7684.69,0.00011284,2]
[353689474,1739991062820,-500.0,0.00011284,2]
[353689475,1739991062829,-500.0,0.00011284,2]
[353689476,1739991062838,-500.0,0.00011284,2]
[353689477,1739991062848,-1239.55,0.00011284,2]
[353689478,1739991062858,-1609.82,0.00011284,2]
[353689479,1739991062867,-694.56,0.00011284,2]
[353689480,1739991062876,-500.0,0.00011284,2]
[353689481,1739991062886,-1000.0,0.00011284,2]
[353689482,1739991062895,-677.2,0.00011284,2]
[353689483,1739991062905,-500.0,0.00011284,2]
[353689484,1739991062914,-1545.54,0.00011284,2]
[353689485,1739991062924,-1288.85,0.00011284,2]
[353689486,1739991062933,-1349.76,0.00011284,2]
[353689487,1739991062944,-591.57,0.00011284,2]
[353689488,1739991062957,-500.0,0.00011284,2]
[353689489,1739991062967,-500.0,0.00011284,2]
[353689490,1739991062978,-1045.64,0.00011284,2]
[353689491,1739991062988,-544.71,0.00011284,2]
[353689492,1739991062997,-515.07,0.00011284,2]
[353689493,1739991063007,-500.0,0.00011284,2]
[353689494,1739991063020,-500.0,0.00011284,2]
[353689495,1739991063032,-500.0,0.00011284,2]
[353689496,1739991063043,-500.0,0.00011284,2]
[353689497,1739991063052,-500.0,0.00011284,2]
[353689498,1739991063063,-864.21,0.00011284,2]
[353689499,1739991063073,-500.0,0.00011284,2]
[353689500,1739991063083,-1217.73,0.00011284,2]
[353689501,1739991063093,-1242.44,0.00011284,2]
[353689502,1739991063104,-608.9,0.00011284,2]
[353689503,1739991063114,-500.0,0.00011284,2]
[353689504,1739991063124,-500.0,0.00011284,2]
[353689505,1739991063133,-500.0,0.00011284,2]
[353689506,1739991063147,-1333.33,0.00011284,2]
[353689507,1739991063158,-2099.28,0.00011284,2]
[353689508,1739991063168,-646.88,0.00011284,2]
[353689509,1739991063179,-1098.74,0.00011284,2]
[353689510,1739991063190,-631.78,0.00011284,2]
[353689511,1739991063201,-1305.78,0.00011284,2]
[353689512,1739991063212,-591.42,0.00011284,2]
[353689513,1739991063222,-814.94,0.00011284,2]
[353689514,1739991063233,-500.0,0.00011284,2]
[353689515,1739991063243,-500.0,0.00011284,2]
[353689516,1739991063255,-500.0,0.00011284,2]
[353689517,1739991063265,-1698.82,0.00011284,2]
[353689518,1739991063275,-1656.29,0.00011284,2]
[353689519,1739991063287,-500.0,0.00011284,2]
[353689520,1739991063297,-958.07,0.00011284,2]
[353689521,1739991063307,-1140.78,0.00011284,2]
[353689522,1739991063317,-1343.79,0.00011284,2]
[353689523,1739991063327,-500.0,0.00011284,2]
[353689524,1739991063337,-500.0,0.00011284,2]
[353689525,1739991063348,-3616.83,0.00011284,2]
[353689526,1739991063358,-1109.34,0.00011284,2]
[353689527,1739991063367,-940.17,0.00011284,2]
[353689528,1739991063376,-500.0,0.00011284,2]
[353689529,1739991063389,-500.0,0.00011284,2]
[353689530,1739991063398,-1068.94,0.00011284,2]
[353689531,1739991063408,-1192.02,0.00011284,2]
[353689532,1739991063418,-500.0,0.00011284,2]
[353689533,1739991063429,-1134.66,0.00011284,2]
[353689534,1739991063441,-500.0,0.00011284,2]
[353689535,1739991063451,-500.0,0.00011284,2]
[353689536,1739991063461,-1387.53,0.00011284,2]
[353689537,1739991063471,-500.0,0.00011284,2]
[353689538,1739991063481,-500.0,0.00011284,2]
[353689539,1739991063491,-525.63,0.00011284,2]
[353689540,1739991063500,-500.0,0.00011284,2]
[353689541,1739991063510,-528.47698692,0.00011284,2]
[353689542,1739991063521,-500.0,0.00011284,2]
[353689543,1739991063530,-1867.51,0.00011284,2]
[353689544,1739991063540,-1262.86,0.00011284,2]
[353689545,1739991063549,-1225.46,0.00011284,2]
[353689546,1739991063558,-500.0,0.00011284,2]
[353689547,1739991063568,-1283.85,0.00011284,2]
[353689548,1739991063577,-1033.15,0.00011284,2]
[353689549,1739991063587,-500.0,0.00011284,2]
[353689550,1739991063597,-1890.5,0.00011284,2]
[353689551,1739991063607,-500.0,0.00011284,2]
[353689552,1739991063617,-500.0,0.00011284,2]
[353689553,1739991063627,-1247.13,0.00011284,2]
[353689554,1739991063638,-500.0,0.00011284,2]
[353689555,1739991063648,-953.52,0.00011284,2]
[353689556,1739991063659,-701.13,0.00011284,2]
[353689557,1739991063669,-606.51,0.00011284,2]
[353689558,1739991063679,-500.0,0.00011284,2]
[353689559,1739991063688,-500.0,0.00011284,2]
[353689560,1739991063698,-837.99,0.00011284,2]
[353689561,1739991063708,-852.55,0.00011284,2]
[353689562,1739991063717,-1040.5,0.00011284,2]
[353689563,1739991063727,-626.51,0.00011284,2]
[353689564,1739991063737,-500.0,0.00011284,2]
[353689565,1739991063747,-500.0,0.00011284,2]
[353689566,1739991063756,-500.0,0.00011284,2]
[353689567,1739991063767,-1225.45,0.00011284,2]
[353689568,1739991063776,-500.0,0.00011284,2]
[353689569,1739991063786,-500.0,0.00011285,2]
[353689570,1739991063795,-500.0,0.00011285,2]
[353689571,1739991063805,-500.0,0.00011285,2]
[353689572,1739991063815,-711.12,0.00011285,2]
[353689573,1739991063824,-500.0,0.00011285,2]
[353689574,1739991063833,-500.0,0.00011285,2]
[353689575,1739991063843,-500.0,0.00011285,2]
[353689576,1739991063853,-500.0,0.00011285,2]
[353689577,1739991063862,-567.75,0.00011285,2]
[353689578,1739991063872,-774.79,0.00011285,2]
[353689579,1739991063881,-648.92,0.00011285,2]
[353689580,1739991063892,-500.0,0.00011285,2]
[353689581,1739991063902,-500.0,0.00011285,2]
[353689582,1739991063912,-500.0,0.00011285,2]
[353689583,1739991063922,-500.0,0.00011285,2]
[353689584,1739991063933,-939.76,0.00011285,2]
[353689585,1739991063942,-500.0,0.00011285,2]
[353689586,1739991063952,-500.0,0.00011285,2]
[353689587,1739991063963,-500.0,0.00011285,2]
[353689588,1739991063972,-500.0,0.00011285,2]
[353689589,1739991063982,-500.0,0.00011285,2]
[353689590,1739991063992,-726.31,0.00011285,2]
[353689591,1739991064002,-500.0,0.00011285,2]
[353689592,1739991064012,-527.6,0.00011285,2]
[353689593,1739991064022,-500.0,0.00011285,2]
[353689594,1739991064031,-637.14,0.00011285,2]
[353689595,1739991064042,-550.13,0.00011285,2]
[353689596,1739991064052,-501.4,0.00011285,2]
[353689597,1739991064062,-500.0,0.00011285,2]
[353689598,1739991064071,-605.64,0.00011285,2]
[353689599,1739991064081,-500.0,0.00011285,2]
[353689600,1739991064091,-500.0,0.00011285,2]
[353689601,1739991064101,-500.0,0.00011285,2]
[353689602,1739991064111,-500.0,0.00011285,2]
[353689603,1739991064121,-500.0,0.00011285,2]
[353689604,1739991064131,-670.06,0.00011285,2]
[353689605,1739991064143,-500.0,0.00011285,2]
[353689606,1739991064154,-500.0,0.00011285,2]
[353689607,1739991064165,-500.0,0.00011285,2]
[353689608,1739991064175,-500.0,0.00011285,2]
[353689609,1739991064185,-741.15,0.00011285,2]
[353689610,1739991064195,-500.0,0.00011285,2]
[353689611,1739991064205,-917.52,0.00011285,2]
[353689612,1739991064215,-653.65,0.00011285,2]
[353689613,1739991064225,-500.0,0.00011285,2]
[353689614,1739991064235,-500.0,0.00011285,2]
[353689615,1739991064245,-500.0,0.00011285,2]
[353689616,1739991064256,-500.0,0.00011285,2]
[353689617,1739991064266,-575.12,0.00011285,2]
[353689618,1739991064276,-500.0,0.00011285,2]
[353689619,1739991064287,-500.0,0.00011285,2]
[353689620,1739991064297,-1008.4,0.00011285,2]
[353689621,1739991064307,-500.0,0.00011285,2]
[353689622,1739991064317,-500.0,0.00011285,2]
[353689623,1739991064327,-648.67,0.00011285,2]
[353689624,1739991064336,-500.0,0.00011285,2]
[353689625,1739991064346,-709.82,0.00011285,2]
[353689626,1739991064357,-500.0,0.00011285,2]
[353689627,1739991064368,-500.0,0.00011285,2]
[353689628,1739991064378,-500.0,0.00011285,2]
[353689629,1739991064389,-759.69,0.00011285,2]
[353689630,1739991064399,-500.0,0.00011285,2]
[353689631,1739991064408,-939.45,0.00011285,2]
[353689632,1739991064419,-934.24,0.00011285,2]
[353689633,1739991064429,-1565.74,0.00011285,2]
[353689634,1739991064441,-500.0,0.00011285,2]
[353689635,1739991064452,-779.39,0.00011285,2]
[353689636,1739991064462,-1114.74,0.00011285,2]
[353689637,1739991064473,-500.0,0.00011285,2]
[353689638,1739991064484,-468.21440851,0.00011285,2]
[353689639,1739991064494,-500.0,0.00011285,2]
[353689640,1739991064504,-500.0,0.00011285,2]
[353689641,1739991064514,-500.0,0.00011285,2]
[353689642,1739991064525,-500.0,0.00011285,2]
[353689643,1739991064535,-500.0,0.00011285,2]
[353689644,1739991064545,-1307.87,0.00011285,2]
[353689645,1739991064555,-500.0,0.00011285,2]
[353689646,1739991064566,-1563.31,0.00011285,2]
[353689647,1739991064576,-500.0,0.00011285,2]
[353689648,1739991064585,-626.84,0.00011285,2]
[353689649,1739991064595,-500.0,0.00011285,2]
[353689650,1739991064604,-500.0,0.00011285,2]
[353689651,1739991064614,-329.942546,0.00011285,2]
[353689652,1739991064624,-500.0,0.00011285,2]
[353689653,1739991064634,-1098.62,0.00011285,2]
[353689654,1739991064645,-602.42,0.00011285,2]
[353689655,1739991064655,-1563.53,0.00011285,2]
[353689656,1739991064665,-500.0,0.00011285,2]
[353689657,1739991064675,-1617.89,0.00011285,2]
[353689658,1739991064685,-568.32,0.00011285,2]
[353689659,1739991064695,-500.0,0.00011285,2]
[353689660,1739991064704,-500.0,0.00011285,2]
[353689661,1739991064714,-1902.45,0.00011285,2]
[353689662,1739991064724,-500.0,0.00011285,2]
[353689663,1739991064734,-997.72,0.00011285,2]
[353689664,1739991064744,-1224.85,0.00011285,2]
[353689665,1739991064754,-1076.75,0.00011285,2]
[353689666,1739991064764,-1287.1,0.00011285,2]
[353689667,1739991064774,-507.43,0.00011285,2]
[353689668,1739991064783,-1834.21,0.00011285,2]
[353689669,1739991064794,-500.0,0.00011285,2]
[353689670,1739991064803,-1131.11,0.00011285,2]
[353689671,1739991064813,-500.0,0.00011285,2]
[353689672,1739991064822,-1818.6,0.00011285,2]
[353689673,1739991064831,-967.39,0.00011285,2]
[353689674,1739991064841,-613.64,0.00011285,2]
[353689675,1739991064851,-500.0,0.00011285,2]
[353689676,1739991064861,-500.0,0.00011285,7]
[353689677,1739991064871,-1954.75,0.00011285,2]
[353689678,1739991064881,-500.0,0.00011285,2]
[353689679,1739991064891,-1010.26,0.00011285,2]
[353689680,1739991064901,-500.0,0.00011285,2]
[353689681,1739991064910,-651.03,0.00011285,2]
[353689682,1739991064920,-825.62,0.00011285,2]
[353689683,1739991064930,-500.0,0.00011285,2]
[353689684,1739991064940,-842.88,0.00011285,2]
[353689685,1739991064949,-500.0,0.00011285,2]
[353689686,1739991064959,-500.0,0.00011285,2]
[353689687,1739991064968,-500.0,0.00011285,2]
[353689688,1739991064977,-500.0,0.00011285,2]
[353689689,1739991064988,-500.0,0.00011285,2]
[353689690,1739991064997,-1110.11,0.00011285,2]
[353689691,1739991065007,-774.36,0.00011285,2]
[353689692,1739991065017,-811.92,0.00011285,2]
[353689693,1739991065027,-500.0,0.00011285,2]
[353689694,1739991065037,-1151.56,0.00011285,2]
[353689695,1739991065047,-500.0,0.00011285,2]
[353689696,1739991065057,-500.0,0.00011285,2]
[353689697,1739991065067,-500.0,0.00011285,2]
[353689698,1739991065077,-1042.18,0.00011285,2]
[353689699,1739991065087,-366.7,0.00011285,2]
[353689700,1739991065158,-500.0,0.00011285,2]
[353689701,1739991065168,-534.83,0.00011285,2]
[353689702,1739991065178,-500.0,0.00011285,2]
[353689703,1739991065188,-500.0,0.00011285,2]
[353689704,1739991065198,-500.0,0.00011285,2]
[353689705,1739991065207,-619.91,0.00011285,2]
[353689706,1739991065217,-533.51,0.00011285,2]
[353689707,1739991065227,-581.26,0.00011285,2]
[353689708,1739991065236,-500.0,0.00011285,2]
[353689709,1739991065246,-500.0,0.00011285,2]
[353689710,1739991065256,-500.0,0.00011285,2]
[353689711,1739991065265,-500.0,0.00011285,2]
[353689712,1739991065275,-500.0,0.00011285,2]
[353689713,1739991065284,-500.0,0.00011285,2]
[353689714,1739991065294,-500.0,0.00011285,2]
[353689715,1739991065304,-500.0,0.00011285,2]
[353689716,1739991065313,-500.0,0.00011285,2]
[353689717,1739991065323,-500.0,0.00011285,2]
[353689718,1739991065333,-500.0,0.00011285,2]
[353689719,1739991065343,-511.59645897,0.00011285,2]
[353689720,1739991065352,-500.0,0.00011285,2]
[353689721,1739991065362,-500.0,0.00011285,2]
[353689722,1739991065372,-849.02,0.00011285,2]
[353689723,1739991065381,-563.08,0.00011285,2]
[353689724,1739991065392,-500.0,0.00011285,2]
[353689725,1739991065402,-500.0,0.00011285,2]
[353689726,1739991065411,-758.16,0.00011285,2]
[353689727,1739991065421,-500.0,0.00011285,2]
[353689728,1739991065431,-500.0,0.00011285,2]
[353689729,1739991065445,-200.0,0.00011344,2]
[353689730,1739991065455,-1398.28713769,0.00011349,2]
[353689731,1739991065465,-3046.97846164,0.00011349,2]
[353689732,1739991065475,-659.34,0.00011365,2]
[353689733,1739991065485,-1285.43,0.00011365,2]
[353689734,1739991065495,-2055.78,0.00011365,2]
[353689735,1739991065504,-1176.26,0.00011365,2]
[353689736,1739991065515,-1598.02,0.00011365,2]
[353689737,1739991065525,-1177.64,0.00011365,2]
[353689738,1739991065535,-1728.13,0.00011365,2]
[353689739,1739991065545,-1464.57,0.00011365,2]
[353689740,1739991065554,-500.0,0.00011365,2]
[353689741,1739991065563,-988.1,0.00011365,2]
[353689742,1739991065572,-1523.71,0.00011365,2]
[353689743,1739991065582,-1697.79,0.00011365,2]
[353689744,1739991065592,-914.84,0.00011365,2]
[353689745,1739991065602,-1345.01,0.00011365,2]
[353689746,1739991065612,-1899.5,0.00011365,2]
[353689747,1739991065621,-500.0,0.00011365,2]
[353689748,1739991065630,-835.97,0.00011365,2]
[353689749,1739991065640,-1253.59,0.00011365,2]
[353689750,1739991065650,-500.0,0.00011365,2]
[353689751,1739991065659,-676.35,0.00011365,2]
[353689752,1739991065668,-1199.2,0.00011365,2]
[353689753,1739991065678,-1444.06,0.00011365,2]
[353689754,1739991065687,-1165.51,0.00011365,2]
[353689755,1739991065696,-1110.09,0.00011365,2]
[353689756,1739991065706,-955.77,0.00011365,2]
[353689757,1739991065715,-1702.36,0.00011365,2]
[353689758,1739991065725,-500.0,0.00011365,2]
[353689759,1739991065735,-1068.07,0.00011365,2]
[353689760,1739991065745,-541.29,0.00011365,2]
[353689761,1739991065754,-1380.32,0.00011365,2]
[353689762,1739991065765,-500.0,0.00011366,2]
[353689763,1739991065775,-564.03,0.00011366,2]
[353689764,1739991065785,-500.0,0.00011366,2]
[353689765,1739991065795,-500.0,0.00011366,2]
[353689766,1739991065804,-958.09,0.00011366,2]
[353689767,1739991065814,-535.40072884,0.00011366,2]
[353689768,1739991065823,-151.0,0.00011366,2]
[353689769,1739991065832,-500.0,0.00011366,2]
[353689770,1739991065842,-638.44,0.00011366,2]
[353689771,1739991065851,-500.0,0.00011366,2]
[353689772,1739991065860,-1305.17,0.00011366,2]
[353689773,1739991065869,-500.0,0.00011366,2]
[353689774,1739991065878,-500.0,0.00011366,2]
[353689775,1739991065889,-500.0,0.00011366,2]
[353689776,1739991065899,-500.0,0.00011366,2]
[353689777,1739991065909,-335.282174,0.00011366,2]
[353689778,1739991065918,-554.43371022,0.00011366,2]
[353689779,1739991065928,-1013.4,0.00011366,2]
[353689780,1739991065937,-445.363227,0.00011366,2]
[353689781,1739991065947,-500.0,0.00011366,2]
[353689782,1739991065957,-800.82,0.00011366,2]
[353689783,1739991065967,-566.24,0.00011366,2]
[353689784,1739991065976,-500.0,0.00011366,2]
[353689785,1739991065986,-500.0,0.00011366,2]
[353689786,1739991065995,-1291.22,0.00011366,2]
[353689787,1739991066005,-705.7,0.00011366,2]
[353689788,1739991066015,-1007.94,0.00011366,2]
[353689789,1739991066025,-500.0,0.00011366,2]
[353689790,1739991066034,-549.58117208,0.00011366,2]
[353689791,1739991066044,-500.0,0.00011366,2]
[353689792,1739991066054,-500.0,0.00011366,2]
[353689793,1739991066064,-500.0,0.00011366,2]
[353689794,1739991066073,-1100.17,0.00011366,2]
[353689795,1739991066084,-1164.92,0.00011366,2]
[353689796,1739991066093,-1009.77,0.00011366,2]
[353689797,1739991066103,-1086.24,0.00011366,2]
[353689798,1739991066114,-1103.11,0.00011366,2]
[353689799,1739991066123,-500.0,0.00011366,2]
[353689800,1739991066133,-500.0,0.00011366,2]
[353689801,1739991066144,-689.09,0.00011366,2]
[353689802,1739991066154,-500.0,0.00011366,2]
[353689803,1739991066163,-1109.15,0.00011366,2]
[353689804,1739991066173,-752.25,0.00011366,2]
[353689805,1739991066184,-712.53,0.00011366,2]
[353689806,1739991066193,-500.0,0.00011366,2]
[353689807,1739991066202,-500.0,0.00011366,2]
[353689808,1739991066211,-844.15,0.00011366,2]
[353689809,1739991066221,-1035.94,0.00011366,2]
[353689810,1739991066230,-1177.99,0.00011366,2]
[353689811,1739991066239,-500.0,0.00011366,2]
[353689812,1739991066249,-970.06,0.00011366,2]
[353689813,1739991066260,-500.0,0.00011366,2]
[353689814,1739991066270,-842.16,0.00011366,2]
[353689815,1739991066279,-1231.95,0.00011366,2]
[353689816,1739991066288,-833.68,0.00011366,2]
[353689817,1739991066298,-1384.51,0.00011366,2]
[353689818,1739991066307,-992.43,0.00011366,2]
[353689819,1739991066316,-700.4,0.00011366,2]
[353689820,1739991066325,-896.41,0.00011366,2]
[353689821,1739991066335,-500.0,0.00011366,2]
[353689822,1739991066344,-835.28,0.00011366,2]
[353689823,1739991066353,-730.1,0.00011366,2]
[353689824,1739991066362,-638.47,0.00011366,2]
[353689825,1739991066372,-722.91,0.00011366,2]
[353689826,1739991066381,-700.98,0.00011366,2]
[353689827,1739991066391,-500.0,0.00011366,2]
[353689828,1739991066401,-887.61,0.00011366,2]
[353689829,1739991066409,-1299.23,0.00011366,2]
[353689830,1739991066419,-537.11,0.00011366,2]
[353689831,1739991066428,-1023.26,0.00011366,2]
[353689832,1739991066439,-500.0,0.00011366,2]
[353689833,1739991066449,-500.0,0.00011366,2]
[353689834,1739991066459,-1193.06,0.00011366,2]
[353689835,1739991066468,-809.28,0.00011366,2]
[353689836,1739991066479,-569.98,0.00011366,2]
[353689837,1739991066489,-947.29,0.00011366,2]
[353689838,1739991066498,-738.85,0.00011366,2]